bitfinex-derivatives/quotes_BTCF0:USTF0_20250912
["timestamp","ask_amount","ask_price","bid_price","bid_amount"]
[1757662320245,1.84059696,115280.0,115270.0,0.02842847]
[1757662340567,1.59212822,115280.0,115270.0,0.02842847]
[1757662340868,1.84059696,115280.0,115270.0,0.02842847]
[1757662344374,1.86046044,115280.0,115270.0,0.02842847]
[1757662349176,1.6119917,115280.0,115270.0,0.02842847]
[1757662349378,1.86046044,115280.0,115270.0,0.02842847]
[1757662350379,1.86178044,115280.0,115270.0,0.02842847]
[1757662351683,1.06534044,115280.0,115270.0,0.02842847]
[1757662351978,1.86154044,115280.0,115270.0,0.02842847]
[1757662352177,1.06534044,115280.0,115270.0,0.02842847]
[1757662352379,1.86154044,115280.0,115270.0,0.02842847]
[1757662353782,1.06534044,115280.0,115270.0,0.02842847]
[1757662353983,1.86130044,115280.0,115270.0,0.02842847]
[1757662355285,1.06534044,115280.0,115270.0,0.02842847]
[1757662355488,1.86130044,115280.0,115270.0,0.02842847]
[1757662356389,1.98566788,115280.0,115270.0,0.02842847]
[1757662356793,1.18970788,115280.0,115270.0,0.02842847]
[1757662357087,1.98534788,115280.0,115270.0,0.02842847]
[1757662359890,1.18970788,115280.0,115270.0,0.02842847]
[1757662360188,1.98494788,115280.0,115270.0,0.02842847]
[1757662360786,1.18970788,115280.0,115270.0,0.04954847]
[1757662360987,1.6121117,115280.0,115270.0,0.04954847]
[1757662361290,1.98494788,115280.0,115270.0,0.04954847]
[1757662363690,1.98494788,115280.0,115270.0,0.02842847]
[1757662366598,1.18970788,115280.0,115270.0,0.02842847]
[1757662366895,1.98430788,115280.0,115270.0,0.02842847]
[1757662368396,0.8168717,115280.0,115270.0,0.06352847]
[1757662368696,1.97536788,115280.0,115270.0,0.24994656]
[1757662368991,1.97536788,115280.0,115270.0,0.06352847]
[1757662370697,1.97536788,115280.0,115270.0,0.06152847]
[1757662370897,1.6025317,115280.0,115270.0,0.06152847]
[1757662371194,1.97536788,115280.0,115270.0,0.06152847]
[1757662371597,1.17828788,115280.0,115270.0,0.06152847]
[1757662371794,1.97528788,115280.0,115270.0,0.06152847]
[1757662372798,1.97591788,115280.0,115270.0,0.04907847]
[1757662373701,1.6030817,115280.0,115270.0,0.06305847]
[1757662373995,1.97591788,115280.0,115270.0,0.06305847]
[1757662374996,1.6030817,115280.0,115270.0,0.06305847]
[1757662375198,1.97591788,115280.0,115270.0,0.06305847]
[1757662375496,1.6030817,115280.0,115270.0,0.06305847]
[1757662375697,1.97595788,115280.0,115270.0,0.06305847]
[1757662376796,1.97595788,115280.0,115270.0,0.0453]
[1757662378990,1.97595788,115280.0,115270.0,0.03132]
[1757662379193,1.97595788,115280.0,115270.0,0.00867]
[1757662379394,1.97595788,115280.0,115270.0,0.03132]
[1757662381003,1.97595788,115280.0,115270.0,0.00867]
[1757662381204,1.17891788,115280.0,115270.0,0.00867]
[1757662381510,1.97563788,115280.0,115270.0,0.0453]
[1757662381801,1.17891788,115280.0,115270.0,0.2953]
[1757662382010,1.97555788,115280.0,115270.0,0.2953]
[1757662382203,1.97555788,115280.0,115270.0,0.48171809]
[1757662382600,1.17891788,115280.0,115270.0,0.48171809]
[1757662382801,1.97567788,115280.0,115270.0,0.48171809]
[1757662384012,1.97567788,115280.0,115270.0,0.2953]
[1757662384204,1.97567788,115280.0,115270.0,0.48171809]
[1757662384404,1.97567788,115280.0,115270.0,0.2953]
[1757662385008,1.6028417,115280.0,115270.0,0.2953]
[1757662385209,1.97567788,115280.0,115270.0,0.2953]
[1757662385913,1.6028417,115280.0,115270.0,0.2953]
[1757662386117,1.97567788,115280.0,115270.0,0.2953]
[1757662386300,0.7356935,115280.0,115270.0,0.48171809]
[1757662386711,1.71867159,115280.0,115270.0,0.48171809]
[1757662387913,1.5322535,115280.0,115270.0,0.48171809]
[1757662388213,1.71867159,115280.0,115270.0,0.48171809]
[1757662388906,0.7356935,115280.0,115270.0,0.48171809]
[1757662389207,1.71851159,115280.0,115270.0,0.48171809]
[1757662390924,1.5320935,115280.0,115270.0,0.48171809]
[1757662391119,1.71851159,115280.0,115270.0,0.48171809]
[1757662391920,1.71854275,115280.0,115270.0,0.48171809]
[1757662397226,1.71778275,115280.0,115270.0,0.48171809]
[1757662397707,0.73572466,115280.0,115270.0,0.48171809]
[1757662397906,0.71412348,115280.0,115270.0,0.48171809]
[1757662398110,0.90054157,115280.0,115270.0,0.48171809]
[1757662399317,0.90054157,115280.0,115270.0,0.49042922]
[1757662401013,0.71412348,115280.0,115270.0,0.49042922]
[1757662401209,0.90054157,115280.0,115270.0,0.49042922]
[1757662402212,1.08695966,115280.0,115270.0,0.49042922]
[1757662402412,1.08695966,115280.0,115270.0,0.30401113]
[1757662402622,1.08695966,115280.0,115270.0,0.49042922]
[1757662403119,1.08695966,115280.0,115270.0,0.30401113]
[1757662403322,1.08695966,115280.0,115270.0,0.49042922]
[1757662403516,1.06449966,115280.0,115270.0,0.30401113]
[1757662403718,1.08730966,115280.0,115270.0,0.49042922]
[1757662404014,0.71447348,115280.0,115270.0,0.49042922]
[1757662404222,1.08730966,115280.0,115270.0,0.49042922]
[1757662404516,0.311,115280.0,115270.0,0.49042922]
[1757662404717,0.0363,115320.0,115310.0,0.02288]
[1757662404923,0.0663,115320.0,115310.0,0.20929809]
[1757662405110,0.0663,115320.0,115310.0,0.47283809]
[1757662405111,0.36281,115320.0,115310.0,0.47283809]
[1757662405314,0.36281,115320.0,115310.0,0.65925618]
[1757662405922,0.36781,115320.0,115310.0,0.66792618]
[1757662406118,0.37081,115320.0,115310.0,0.48150809]
[1757662406920,0.36781,115320.0,115310.0,0.48150809]
[1757662407121,0.36881,115320.0,115310.0,0.48250809]
[1757662407620,0.36381,115320.0,115310.0,0.48250809]
[1757662407821,0.36581,115320.0,115310.0,0.48250809]
[1757662408420,0.55122809,115320.0,115310.0,0.48250809]
[1757662409020,0.55122809,115320.0,115310.0,0.29609]
[1757662409228,1.11193618,115320.0,115310.0,0.03255]
[1757662409424,1.36193618,115320.0,115310.0,0.00967]
[1757662409725,2.15645618,115320.0,115310.0,0.00967]
[1757662411016,2.34287427,115320.0,115310.0,0.00967]
[1757662411826,2.36278261,115320.0,115310.0,0.00967]
[1757662412423,2.36578261,115320.0,115310.0,0.00967]
[1757662412727,2.36778261,115320.0,115310.0,0.00967]
[1757662412927,2.18160452,115320.0,115310.0,0.00967]
[1757662413122,2.38957198,115320.0,115310.0,0.00967]
[1757662413329,2.20315389,115320.0,115310.0,0.00967]
[1757662413823,2.20303389,115320.0,115310.0,0.00967]
[1757662414627,1.83019771,115320.0,115310.0,0.00967]
[1757662414824,2.20303389,115320.0,115310.0,0.00967]
[1757662415017,1.83019771,115320.0,115310.0,0.00967]
[1757662415223,2.20303389,115320.0,115310.0,0.00967]
[1757662415631,1.40839389,115320.0,115310.0,0.00967]
[1757662415931,2.20319389,115320.0,115310.0,0.00967]
[1757662416430,2.20299389,115320.0,115310.0,0.00967]
[1757662418327,2.20291389,115320.0,115310.0,0.00967]
[1757662418531,2.07847013,115320.0,115310.0,0.00967]
[1757662419428,1.82847013,115320.0,115310.0,0.00967]
[1757662423239,1.82811013,115320.0,115310.0,0.00967]
[1757662424831,1.03395013,115320.0,115310.0,0.00967]
[1757662425032,1.82811013,115320.0,115310.0,0.00967]
[1757662428139,1.03395013,115320.0,115310.0,0.00967]
[1757662428448,1.82771013,115320.0,115310.0,0.00967]
[1757662428639,0.78555771,115320.0,115310.0,0.00967]
[1757662428944,0.88820455,115320.0,115310.0,0.03255]
[1757662429238,1.68184455,115320.0,115310.0,0.03255]
[1757662429436,1.7035516,115320.0,115310.0,0.03255]
[1757662429937,0.9097916,115320.0,115310.0,0.03255]
[1757662430138,1.55788834,115320.0,115310.0,0.40674621]
[1757662430540,1.19708834,115320.0,115310.0,0.40674621]
[1757662431042,1.32128455,115320.0,115310.0,0.28255]
[1757662431942,0.52740455,115320.0,115310.0,0.28255]
[1757662432144,0.38971834,115320.0,115310.0,0.41390621]
[1757662432537,0.40263834,115320.0,115310.0,0.76754621]
[1757662434746,0.38273,115320.0,115310.0,0.76754621]
[1757662440150,0.38273,115320.0,115310.0,0.64335]
[1757662440345,0.38273,115320.0,115310.0,0.76754621]
[1757662441546,0.38273,115320.0,115310.0,0.78545847]
[1757662441745,0.36981,115320.0,115310.0,0.91681468]
[1757662441945,0.347,115320.0,115310.0,1.70957468]
[1757662442150,0.347,115320.0,115310.0,1.58537847]
[1757662443545,0.347,115320.0,115310.0,1.58529847]
[1757662445949,0.347,115320.0,115310.0,1.46110226]
[1757662446145,0.347,115320.0,115310.0,1.58529847]
[1757662448157,0.36925,115320.0,115310.0,0.79261847]
[1757662448353,0.38217,115320.0,115310.0,0.53545847]
[1757662448554,0.50636621,115320.0,115310.0,0.53545847]
[1757662448753,0.74297,115320.0,115310.0,0.05046226]
[1757662449058,0.99297,115320.0,115310.0,0.05046226]
[1757662449256,1.11716621,115320.0,115310.0,0.05046226]
[1757662449453,1.11716621,115320.0,115310.0,0.17465847]
[1757662450556,0.75636621,115320.0,115310.0,0.05046226]
[1757662454058,1.11716621,115320.0,115310.0,0.05046226]
[1757662454356,1.24136242,115320.0,115310.0,0.02758226]
[1757662454862,1.80673875,115320.0,115310.0,0.05027226]
[1757662455162,1.93089496,115320.0,115310.0,0.05027226]
[1757662457863,1.93065496,115320.0,115310.0,0.05027226]
[1757662458263,1.90908621,115320.0,115310.0,0.05027226]
[1757662458464,1.93067675,115320.0,115310.0,0.05027226]
[1757662461463,1.90908621,115320.0,115310.0,0.05027226]
[1757662463260,1.93068373,115320.0,115310.0,0.05027226]
[1757662463466,1.93068373,115320.0,115310.0,0.02758226]
[1757662463966,1.93068373,115320.0,115310.0,0.04921226]
[1757662464863,1.78489,115320.0,115310.0,0.04921226]
[1757662465064,1.90908621,115320.0,115310.0,0.04921226]
[1757662474472,1.93068453,115320.0,115310.0,0.04921226]
[1757662474673,1.90908621,115320.0,115310.0,0.02758226]
[1757662474973,2.05488057,115320.0,115310.0,0.00967]
[1757662475271,2.07514279,115320.0,115310.0,0.00967]
[1757662475975,1.80515222,115320.0,115310.0,0.00967]
[1757662476176,2.05354464,115320.0,115310.0,0.00967]
[1757662476373,1.80515222,115320.0,115310.0,0.00967]
[1757662476674,2.05354464,115320.0,115310.0,0.00967]
[1757662476875,2.0751452,115320.0,115310.0,0.00967]
[1757662479267,1.8251452,115320.0,115310.0,0.00967]
[1757662480383,1.94931668,115320.0,115310.0,0.00967]
[1757662481582,1.15739668,115320.0,115310.0,0.00967]
[1757662481780,1.94847668,115320.0,115310.0,0.00967]
[1757662484984,1.57591278,115320.0,115310.0,0.00967]
[1757662485187,1.94847668,115320.0,115310.0,0.00967]
[1757662485381,1.94803668,115320.0,115310.0,0.00967]
[1757662492090,1.94783668,115320.0,115310.0,0.00967]
[1757662499495,1.15739668,115320.0,115310.0,0.00967]
[1757662499903,1.94783668,115320.0,115310.0,0.00967]
[1757662503406,1.15739668,115320.0,115310.0,0.00967]
[1757662503606,1.94783668,115320.0,115310.0,0.00967]
[1757662503802,0.03685,115290.0,115280.0,0.06238632]
[1757662504006,0.03685,115280.0,115270.0,0.27071827]
[1757662504200,1.0802139,115280.0,115270.0,0.08443632]
[1757662504408,1.0802139,115280.0,115270.0,0.02205]
[1757662504706,0.03685,115270.0,115260.0,0.02205]
[1757662504902,1.65437195,115270.0,115260.0,0.08446298]
[1757662505099,1.65437195,115270.0,115260.0,0.02205]
[1757662505299,0.86393195,115270.0,115260.0,0.02205]
[1757662505505,1.65437195,115270.0,115260.0,0.02205]
[1757662505908,1.65437195,115270.0,115260.0,0.02405]
[1757662507610,1.65537195,115270.0,115260.0,0.02505]
[1757662507797,1.46909,115270.0,115260.0,0.02505]
[1757662508111,1.65541195,115270.0,115260.0,0.02505]
[1757662508306,0.86393195,115270.0,115260.0,0.20833195]
[1757662508512,1.65641195,115270.0,115260.0,0.21433195]
[1757662509211,1.65641195,115270.0,115260.0,0.02805]
[1757662509413,1.65641195,115270.0,115260.0,0.21433195]
[1757662510912,1.66487412,115270.0,115260.0,0.21433195]
[1757662511918,1.66487412,115270.0,115260.0,0.02805]
[1757662512217,1.66487412,115270.0,115260.0,0.006]
[1757662512417,0.87439412,115270.0,115260.0,0.006]
[1757662512612,0.87439412,115270.0,115260.0,0.02805]
[1757662512814,1.66495412,115270.0,115260.0,0.02805]
[1757662513012,1.47867217,115270.0,115260.0,0.02805]
[1757662513218,1.66495412,115270.0,115260.0,0.02805]
[1757662513417,1.66495412,115270.0,115260.0,0.21433195]
[1757662513817,1.66495412,115270.0,115260.0,0.02805]
[1757662515619,0.87439412,115270.0,115260.0,0.02805]
[1757662515814,1.66499412,115270.0,115260.0,0.02805]
[1757662519118,1.47871217,115270.0,115260.0,0.02805]
[1757662519311,1.66499412,115270.0,115260.0,0.02805]
[1757662519514,1.47871217,115270.0,115260.0,0.02805]
[1757662519714,1.66499412,115270.0,115260.0,0.02805]
[1757662521122,1.47871217,115270.0,115260.0,0.02805]
[1757662521323,1.66499412,115270.0,115260.0,0.02805]
[1757662522224,0.87439412,115270.0,115260.0,0.02805]
[1757662522416,1.66499412,115270.0,115260.0,0.02805]
[1757662523426,1.66499412,115270.0,115260.0,0.12805]
[1757662524021,1.47871217,115270.0,115260.0,0.12805]
[1757662524223,1.66499412,115270.0,115260.0,0.12805]
[1757662527829,0.87439412,115270.0,115260.0,0.12805]
[1757662528031,1.66503412,115270.0,115260.0,0.12805]
[1757662528425,0.86593195,115270.0,115260.0,0.12805]
[1757662528634,1.65657195,115270.0,115260.0,0.31433195]
[1757662528934,1.65657195,115270.0,115260.0,0.12805]
[1757662529230,1.8428539,115270.0,115260.0,0.106]
[1757662530224,1.65657195,115270.0,115260.0,0.106]
[1757662532227,1.67814269,115270.0,115260.0,0.106]
[1757662532630,1.68688311,115270.0,115260.0,0.106]
[1757662538028,1.50060116,115270.0,115260.0,0.106]
[1757662538332,1.68688311,115270.0,115260.0,0.106]
[1757662540532,1.62488066,115270.0,115260.0,0.106]
[1757662542232,1.50060116,115270.0,115260.0,0.106]
[1757662542435,1.62488066,115270.0,115260.0,0.106]
[1757662544441,0.83424066,115270.0,115260.0,0.106]
[1757662544741,1.62484066,115270.0,115260.0,0.106]
[1757662552746,1.62484066,115270.0,115260.0,0.11466]
[1757662553644,0.70996116,115270.0,115260.0,0.11466]
[1757662553845,1.50052116,115270.0,115260.0,0.11466]
[1757662554039,1.62480066,115270.0,115260.0,0.11466]
[1757662555543,1.62380066,115270.0,115260.0,0.10966]
[1757662555846,1.62380066,115270.0,115260.0,0.11266]
[1757662558050,1.62388066,115270.0,115260.0,0.11266]
[1757662558748,0.83328203,115270.0,115260.0,0.11266]
[1757662558943,1.62388203,115270.0,115260.0,0.11266]
[1757662559451,0.70900253,115270.0,115260.0,0.11266]
[1757662559649,1.49956253,115270.0,115260.0,0.11266]
[1757662559952,1.62384203,115270.0,115260.0,0.11266]
[1757662560547,0.83328203,115270.0,115260.0,0.11266]
[1757662560743,1.49956253,115270.0,115260.0,0.11266]
[1757662560949,1.62384203,115270.0,115260.0,0.11266]
[1757662561847,1.62384203,115270.0,115260.0,0.13579]
[1757662562048,1.49956253,115270.0,115260.0,0.13579]
[1757662562351,0.83328203,115270.0,115260.0,0.13579]
[1757662562654,1.62392203,115270.0,115260.0,0.13579]
[1757662562851,1.49964253,115270.0,115260.0,0.13579]
[1757662563044,1.62384203,115270.0,115260.0,0.13579]
[1757662564059,1.62384453,115270.0,115260.0,0.13579]
[1757662566863,1.49956503,115270.0,115260.0,0.13579]
[1757662567064,1.62384453,115270.0,115260.0,0.13579]
[1757662569263,1.49956503,115270.0,115260.0,0.13579]
[1757662569758,1.62384453,115270.0,115260.0,0.13579]
[1757662569963,1.49956503,115270.0,115260.0,0.13579]
[1757662570261,1.62384453,115270.0,115260.0,0.13579]
[1757662570660,1.62384453,115270.0,115260.0,0.11266]
[1757662570856,1.49956503,115270.0,115260.0,0.11266]
[1757662571063,1.62384453,115270.0,115260.0,0.11266]
[1757662574066,1.62384453,115270.0,115260.0,0.13579]
[1757662574067,0.83328453,115270.0,115260.0,0.13579]
[1757662574266,1.62428453,115270.0,115260.0,0.13579]
[1757662576467,0.70900503,115270.0,115260.0,0.13579]
[1757662576666,1.62428453,115270.0,115260.0,0.13579]
[1757662577869,1.50000503,115270.0,115260.0,0.13579]
[1757662578068,1.62428453,115270.0,115260.0,0.13579]
[1757662578961,1.50000503,115270.0,115260.0,0.13579]
[1757662579161,1.62428453,115270.0,115260.0,0.13579]
[1757662580168,0.83328453,115270.0,115260.0,0.13579]
[1757662580375,1.62408453,115270.0,115260.0,0.13579]
[1757662580667,1.49114461,115270.0,115260.0,0.2600695]
[1757662580867,1.61542411,115270.0,115260.0,0.2600695]
[1757662581569,1.49114461,115270.0,115260.0,0.2600695]
[1757662581871,1.49989167,115270.0,115260.0,0.13579]
[1757662582368,1.62417117,115270.0,115260.0,0.13579]
[1757662585372,1.62389117,115270.0,115260.0,0.13579]
[1757662586469,1.49961167,115270.0,115260.0,0.13579]
[1757662586676,1.62389117,115270.0,115260.0,0.13579]
[1757662587375,1.62389117,115270.0,115260.0,0.11266]
[1757662593778,1.49961167,115270.0,115260.0,0.11266]
[1757662594173,1.62389117,115270.0,115260.0,0.11266]
[1757662599083,0.83329117,115270.0,115260.0,0.13373]
[1757662599280,1.62385117,115270.0,115260.0,0.13373]
[1757662600183,0.83329117,115270.0,115260.0,0.13373]
[1757662600382,1.62385117,115270.0,115260.0,0.13373]
[1757662602588,1.68598448,115270.0,115260.0,0.13373]
[1757662602984,1.68598448,115270.0,115260.0,0.32014281]
[1757662603487,1.68598448,115270.0,115260.0,0.13373]
[1757662605688,1.68598448,115270.0,115260.0,0.32014281]
[1757662605989,1.68598448,115270.0,115260.0,0.13373]
[1757662606282,1.68598448,115270.0,115260.0,0.32014281]
[1757662607490,1.68598448,115270.0,115260.0,0.13373]
[1757662607789,1.68598448,115270.0,115260.0,0.32014281]
[1757662608284,1.68598448,115270.0,115260.0,0.13373]
[1757662608490,1.49957167,115270.0,115260.0,0.32014281]
[1757662608698,1.68598448,115270.0,115260.0,0.32014281]
[1757662609393,1.68598448,115270.0,115260.0,0.13373]
[1757662609598,0.89542448,115270.0,115260.0,0.32014281]
[1757662609787,1.68598448,115270.0,115260.0,0.32014281]
[1757662611199,1.68594448,115270.0,115260.0,0.32014281]
[1757662612600,0.70901167,115270.0,115260.0,0.32014281]
[1757662612902,1.68594448,115270.0,115260.0,0.32014281]
[1757662613101,1.49953167,115270.0,115260.0,0.32014281]
[1757662613301,1.68594448,115270.0,115260.0,0.32014281]
[1757662613799,1.68594448,115270.0,115260.0,0.13373]
[1757662614204,1.68594448,115270.0,115260.0,0.32014281]
[1757662615094,1.49953167,115270.0,115260.0,0.13373]
[1757662615394,1.68594448,115270.0,115260.0,0.32014281]
[1757662616202,1.68594448,115270.0,115260.0,0.13373]
[1757662616398,1.68594448,115270.0,115260.0,0.32014281]
[1757662616897,1.68594448,115270.0,115260.0,0.13373]
[1757662617294,1.68594448,115270.0,115260.0,0.32014281]
[1757662618002,1.49953167,115270.0,115260.0,0.13373]
[1757662618203,1.68594448,115270.0,115260.0,0.32014281]
[1757662620200,1.68594448,115270.0,115260.0,0.13373]
[1757662620403,1.68594448,115270.0,115260.0,0.32014281]
[1757662620801,1.68594448,115270.0,115260.0,0.11266]
[1757662621694,1.68594448,115270.0,115260.0,0.1343]
[1757662622301,1.49953167,115270.0,115260.0,0.1343]
[1757662622499,1.68594448,115270.0,115260.0,0.32071281]
[1757662622900,1.68594448,115270.0,115260.0,0.11266]
[1757662623102,1.68594448,115270.0,115260.0,0.1343]
[1757662623103,1.49953167,115270.0,115260.0,0.1343]
[1757662623305,1.69074448,115270.0,115260.0,0.1343]
[1757662626105,0.70901167,115270.0,115260.0,0.1343]
[1757662626307,1.69062448,115270.0,115260.0,0.1343]
[1757662627315,1.50421167,115270.0,115260.0,0.1343]
[1757662627508,1.69062448,115270.0,115260.0,0.1343]
[1757662632712,1.69002448,115270.0,115260.0,0.1343]
[1757662633708,1.68990448,115270.0,115260.0,0.1343]
[1757662636217,1.50349167,115270.0,115260.0,0.1343]
[1757662636415,1.68990448,115270.0,115260.0,0.1343]
[1757662637115,1.50349167,115270.0,115260.0,0.1343]
[1757662637316,1.68990448,115270.0,115260.0,0.1343]
[1757662639618,0.70901167,115270.0,115260.0,0.1343]
[1757662639809,1.68954448,115270.0,115260.0,0.1343]
[1757662641721,1.50313167,115270.0,115260.0,0.1343]
[1757662641915,1.68954448,115270.0,115260.0,0.1343]
[1757662642718,1.68918448,115270.0,115260.0,0.1343]
[1757662648318,1.50277167,115270.0,115260.0,0.1343]
[1757662648522,1.68918448,115270.0,115260.0,0.1343]
[1757662649727,1.50277167,115270.0,115260.0,0.1343]
[1757662650027,1.68918448,115270.0,115260.0,0.1343]
[1757662651827,1.50277167,115270.0,115260.0,0.1343]
[1757662652326,1.68918448,115270.0,115260.0,0.1343]
[1757662652527,0.89542448,115270.0,115260.0,0.1343]
[1757662652727,1.68830448,115270.0,115260.0,0.1343]
[1757662653123,1.68810448,115270.0,115260.0,0.1343]
[1757662654929,1.50169167,115270.0,115260.0,0.1343]
[1757662655130,1.68810448,115270.0,115260.0,0.1343]
[1757662655729,1.32730448,115270.0,115260.0,0.1343]
[1757662656331,1.14089167,115270.0,115260.0,0.1343]
[1757662656632,1.32730448,115270.0,115260.0,0.1343]
[1757662660328,1.68810448,115270.0,115260.0,0.1343]
[1757662660535,1.32730448,115270.0,115260.0,0.1343]
[1757662661130,1.68810448,115270.0,115260.0,0.1343]
[1757662661330,1.68742448,115270.0,115260.0,0.1343]
[1757662662437,1.6252882,115270.0,115260.0,0.1343]
[1757662665240,1.50081167,115270.0,115260.0,0.1343]
[1757662665437,1.6249282,115270.0,115260.0,0.1343]
[1757662667929,1.6248082,115270.0,115260.0,0.1343]
[1757662669845,1.50053167,115270.0,115260.0,0.1343]
[1757662670145,1.6248082,115270.0,115260.0,0.1343]
[1757662671846,1.2640082,115270.0,115260.0,0.1343]
[1757662674850,1.6248082,115270.0,115260.0,0.1343]
[1757662675841,1.2640082,115270.0,115260.0,0.1343]
[1757662676042,1.6248082,115270.0,115260.0,0.1343]
[1757662678352,1.2640082,115270.0,115260.0,0.1343]
[1757662678755,1.13973167,115270.0,115260.0,0.1343]
[1757662678955,1.2640082,115270.0,115260.0,0.1343]
[1757662679149,1.6248082,115270.0,115260.0,0.1343]
[1757662680256,1.50053167,115270.0,115260.0,0.1343]
[1757662680550,1.6248082,115270.0,115260.0,0.1343]
[1757662681052,0.8332882,115270.0,115260.0,0.1343]
[1757662681553,1.6242082,115270.0,115260.0,0.1343]
[1757662683152,1.2634082,115270.0,115260.0,0.1343]
[1757662683354,1.6242082,115270.0,115260.0,0.1343]
[1757662683753,1.6242082,115270.0,115260.0,0.11266]
[1757662685154,1.49993167,115270.0,115260.0,0.11266]
[1757662685353,1.6242082,115270.0,115260.0,0.11266]
[1757662688151,1.49993167,115270.0,115260.0,0.11266]
[1757662688360,1.6242082,115270.0,115260.0,0.11266]
[1757662689963,1.49993167,115270.0,115260.0,0.11266]
[1757662690164,1.6242082,115270.0,115260.0,0.11266]
[1757662698477,1.49993167,115270.0,115260.0,0.11266]
[1757662698777,1.6242082,115270.0,115260.0,0.11266]
[1757662699875,1.49993167,115270.0,115260.0,0.11266]
[1757662700071,1.6242082,115270.0,115260.0,0.11266]
[1757662702677,1.74848473,115270.0,115260.0,0.11266]
[1757662704674,1.6242082,115270.0,115260.0,0.11266]
[1757662706982,1.49993167,115270.0,115260.0,0.11266]
[1757662707276,1.6242082,115270.0,115260.0,0.13368]
[1757662707482,0.8332882,115270.0,115260.0,0.13368]
[1757662707678,1.6242082,115270.0,115260.0,0.13368]
[1757662710589,0.8332882,115270.0,115260.0,0.13368]
[1757662710779,1.49993167,115270.0,115260.0,0.25795653]
[1757662710978,1.49993167,115270.0,115260.0,0.13368]
[1757662710979,1.6242082,115270.0,115260.0,0.13368]
[1757662711285,1.6242082,115270.0,115260.0,0.25795653]
[1757662712888,1.2634082,115270.0,115260.0,0.13368]
[1757662713087,1.2634082,115270.0,115260.0,0.25795653]
[1757662713393,1.2634082,115270.0,115260.0,0.13368]
[1757662716689,1.26336888,115270.0,115260.0,0.13368]
[1757662724498,1.32549717,115270.0,115260.0,0.32008482]
[1757662725496,1.32549717,115270.0,115260.0,0.13368]
[1757662727099,1.32549717,115270.0,115260.0,0.32008482]
[1757662727598,1.32549717,115270.0,115260.0,0.13368]
[1757662727805,1.32549717,115270.0,115260.0,0.32008482]
[1757662728101,0.53457717,115270.0,115260.0,0.32008482]
[1757662728306,1.32545717,115270.0,115260.0,0.13368]
[1757662728613,1.32545717,115270.0,115260.0,0.32008482]
[1757662729395,1.32545717,115270.0,115260.0,0.13368]
[1757662729597,1.32545717,115270.0,115260.0,0.32008482]
[1757662729997,1.32545717,115270.0,115260.0,0.13368]
[1757662730201,1.32545717,115270.0,115260.0,0.32008482]
[1757662731902,1.13905235,115270.0,115260.0,0.32008482]
[1757662732102,1.32545717,115270.0,115260.0,0.32008482]
[1757662733301,1.32545717,115270.0,115260.0,0.13368]
[1757662733499,1.13905235,115270.0,115260.0,0.13368]
[1757662733703,1.32545717,115270.0,115260.0,0.32008482]
[1757662734006,1.13901235,115270.0,115260.0,0.32008482]
[1757662734303,1.32541717,115270.0,115260.0,0.32008482]
[1757662734603,1.13901235,115270.0,115260.0,0.32008482]
[1757662734903,1.32541717,115270.0,115260.0,0.32008482]
[1757662735804,1.13901235,115270.0,115260.0,0.32008482]
[1757662736111,1.32541717,115270.0,115260.0,0.32008482]
[1757662737000,1.32541717,115270.0,115260.0,0.13368]
[1757662737201,1.32541717,115270.0,115260.0,0.32008482]
[1757662737703,1.32541717,115270.0,115260.0,0.13368]
[1757662738099,1.32541717,115270.0,115260.0,0.32008482]
[1757662738502,1.32541717,115270.0,115260.0,0.13368]
[1757662738703,1.32541717,115270.0,115260.0,0.32008482]
[1757662740305,1.32541717,115270.0,115260.0,0.13368]
[1757662740502,1.51182199,115270.0,115260.0,0.11266]
[1757662740704,1.87262199,115270.0,115260.0,0.11266]
[1757662742210,1.68621717,115270.0,115260.0,0.13516]
[1757662742510,1.49981235,115270.0,115260.0,0.13516]
[1757662743009,0.06535016,115290.0,115260.0,2.10592446]
[1757662743010,0.0138,115290.0,115260.0,2.10592446]
[1757662743311,0.32545,115290.0,115280.0,0.75610964]
[1757662744010,0.32545,115290.0,115280.0,0.3833]
[1757662744206,0.32545,115290.0,115280.0,0.75610964]
[1757662744408,0.51385482,115290.0,115280.0,0.76477964]
[1757662744909,0.32745,115290.0,115280.0,0.76477964]
[1757662745110,0.32745,115290.0,115280.0,1.02852964]
[1757662746802,0.32545,115290.0,115280.0,1.02852964]
[1757662747007,0.32645,115290.0,115280.0,1.09201157]
[1757662747407,0.32645,115290.0,115280.0,1.02952964]
[1757662748508,0.31265,115290.0,115280.0,1.02952964]
[1757662749413,0.31265,115290.0,115280.0,1.82024964]
[1757662751712,0.31265,115290.0,115280.0,1.44744]
[1757662752013,0.31265,115290.0,115280.0,1.82020964]
[1757662752513,0.31265,115290.0,115280.0,1.02952964]
[1757662752713,0.49905482,115290.0,115280.0,1.82020964]
[1757662753612,0.31265,115290.0,115280.0,1.82020964]
[1757662753812,0.49905482,115290.0,115280.0,1.02952964]
[1757662754011,0.31265,115290.0,115280.0,1.82016964]
[1757662754603,0.31265,115290.0,115280.0,2.18100964]
[1757662764924,0.291,115290.0,115280.0,2.18100964]
[1757662769023,0.291,115290.0,115280.0,1.8082]
[1757662769223,0.291,115290.0,115280.0,2.17989639]
[1757662770020,0.291,115290.0,115280.0,1.62068193]
[1757662770223,0.291,115290.0,115280.0,2.17989639]
[1757662770921,0.291,115290.0,115280.0,2.11741446]
[1757662771523,0.291,115290.0,115280.0,2.17989639]
[1757662771925,0.291,115290.0,115280.0,1.99385157]
[1757662772527,0.291,115290.0,115280.0,2.18017639]
[1757662774329,0.291,115290.0,115280.0,1.62096193]
[1757662774624,0.291,115290.0,115280.0,1.99377157]
[1757662775635,0.31278,115290.0,115280.0,1.20281157]
[1757662775930,0.31278,115290.0,115280.0,1.99357157]
[1757662777934,0.31278,115290.0,115280.0,2.00909558]
[1757662778418,0.31278,115290.0,115280.0,1.28076095]
[1757662778623,0.31278,115290.0,115280.0,1.99355501]
[1757662779532,0.31278,115290.0,115280.0,2.011146]
[1757662781134,0.32579,115290.0,115280.0,1.997476]
[1757662781830,0.32579,115290.0,115280.0,1.93505063]
[1757662782223,0.32579,115290.0,115280.0,1.99747803]
[1757662783030,0.32579,115290.0,115280.0,1.93487782]
[1757662783235,0.32579,115290.0,115280.0,2.01288376]
[1757662783529,0.32579,115290.0,115280.0,1.62425983]
[1757662783729,0.32579,115290.0,115280.0,1.99706947]
[1757662783924,0.32579,115290.0,115280.0,1.93463782]
[1757662784122,0.32579,115290.0,115280.0,2.01264376]